Cogmind - Beta 14 @@@ ROGUE MODE // 2024.12.11 @ 17:45:56 Player: Fangrelle Result: Destroyed by YI-UF0 with YI-UF0's Doublenader Performance ------------- Evolutions (0) 0 Regions Visited (2) 400 Robots Destroyed (15) 75 Value Destroyed (323) 323 Prototype IDs (0) 0 Alien Tech Used (0) 0 Bonus (0) 0 TOTAL SCORE: 798 Bonus ------- None Cogmind --------- Core Integrity 0/250 Matter 275/300 Energy 89/160 System Corruption 0% Temperature Cool (0) Movement Rolling (115) Ox1 Location -10/Mines Parts ------- > --- POWER (1) -------- Light Nuclear Core > --- PROPULSION (2) --- Compact Wheel > --- UTILITY (2) ------ Large Storage Unit ECM Suite > --- WEAPON (2) ------- (None) > --- INVENTORY (15) --- Light Treads Improved Heat Sink Improved Terrain Scanner Improved Terrain Scanner Mining Laser Peak State ------------ > --- POWER ------------ Light Nuclear Core > --- PROPULSION ------- Light Treads Light Treads > --- UTILITY ---------- Large Storage Unit Seismic Detector > --- WEAPON ----------- Medium Laser Assault Rifle > --- INVENTORY -------- Light Ion Engine Light Treads Compact Wheel Improved Terrain Scanner Improved Terrain Scanner ECM Suite Medium Laser [Rating: 10] Favorites ----------- Power Light Nuclear Core Engine Ion Engine Power Core Light Nuclear Core Propulsion Light Treads Treads Light Treads Leg Aluminum Leg Wheel Compact Wheel Utility Seismic Detector Device Seismic Detector Storage Large Storage Unit Weapon Medium Laser Energy Gun Medium Laser Ballistic Gun Assault Rifle Build | -11 -10 -10 ------- Run | Yrd Mat Min Slots Evolved . | . . . Power . | . . . Propulsion . | . . . Utility . | . . . Weapon . | . . . Parts Attached 12 | 4 5 3 Power 3 | . 2 1 Engine 1 | . 1 . Core 2 | . 1 1 Reactor . | . . . Propulsion 4 | 2 1 1 Treads 3 | 2 1 . Leg . | . . . Wheel 1 | . . 1 Hover . | . . . Flight . | . . . Utility 3 | 1 1 1 Device 2 | 1 . 1 Storage 1 | . 1 . Processor . | . . . Hackware . | . . . Protection . | . . . Artifact . | . . . Weapon 2 | 1 1 . Energy Gun 1 | . 1 . Energy Cannon . | . . . Ballistic Gun 1 | 1 . . Ballistic Cannon . | . . . Launcher . | . . . Special Weapon . | . . . Impact Weapon . | . . . Slashing Weapon . | . . . Piercing Weapon . | . . . Special Melee Weapon . | . . . Unidentified Prototypes . | . . . Parts Lost 8 | . 3 5 Power 2 | . 1 1 Propulsion 2 | . 1 1 Utility 1 | . . 1 Weapon 3 | . 1 2 Highest Loss Streak 5 | . 2 5 To Critical Strikes . | . . . Average Slot Usage (%) 98 | . 99 97 Engine 4 | . 6 . Core 9 | . 7 14 Treads 27 | . 27 27 Device 13 | . 14 13 Storage 14 | . 14 14 Energy Gun 22 | . 20 26 Ballistic Gun 5 | . 7 . Peak Build Rating 10 | 7 10 10 Average Rating 8 | 6 8 9 On Entrance 7 | 6 7 10 Naked Turns . | . . . Heaviest Build 30 | 15 30 30 Greatest Support 40 | 40 40 40 Greatest Overweight (x) 1 | . 1 1 Average Overweight (x) . | . . . Largest Inventory Capacity 15 | 8 15 15 Average Capacity 14 | 8 14 15 Most Carried 7 | 6 7 7 Average Carried 5 | 2 6 6 Final Capacity 15 | 8 15 15 Final Carried 7 | 4 7 5 Class Distribution -------------------- 100% | Mutant Dominant Class ---------------- Mutant | -10/Materials Mutant | -10/Mines Resources | -11 -10 -10 ----------- Run | Yrd Mat Min Matter Collected 401 | 255 146 . Remotely . | . . . Salvage Created 552 | 152 400 . Parts 32 | 9 23 . Haulers Intercepted 1 | . 1 . Recyclers Shooed 1 | . 1 . Parts Field Recycled . | . . . Retrieved Matter . | . . . Parts Self-Destructed . | . . . Prevented . | . . . Kills | -11 -10 -10 ------- Run | Yrd Mat Min Combat Hostiles Destroyed 7 | . 7 . Guns 7 | . 7 . Classes Destroyed 5 | 2 3 . Tunneler 5 | 3 2 . Hauler 1 | . 1 . Recycler 1 | 1 . . Watcher 1 | . 1 . Grunt 7 | . 7 . Best Kill Streak 4 | 3 4 . Combat Bots Only 2 | . 2 . Max Kills in Single Turn 1 | 1 1 . Gunslinging . | . . . Exploded . | . . . Melee . | . . . Uniques/NPCs Destroyed . | . . . Combat | -11 -10 -10 -------- Run | Yrd Mat Min Hostile Shots Fired 87 | . 71 16 Missed 22 | . 16 6 Damage Taken 1086 | . 749 337 Core 250 | . 141 109 Absorbed by Shields . | . . . Core Remaining (%) 100 | 100 . . Volleys Fired 65 | 11 48 6 Largest 2 | 2 2 1 Hottest 100 | 70 100 50 Shots Fired 123 | 22 95 6 Gun 123 | 22 95 6 Cannon . | . . . Launcher . | . . . Special . | . . . Kinetic 42 | 11 31 . Thermal 81 | 11 64 6 Explosive . | . . . Electromagnetic . | . . . Robot Hit Streak 6 | 6 5 1 Robot Miss Streak 4 | 2 4 3 Penetration Max . | . . . Secondary Targets 1 | . 1 . Max Gunslinging Chain 1 | . 1 . Shots Hit Robots 69 | 15 51 3 Core Hits 25 | 4 20 1 Critical Kills . | . . . Critical Parts Destroyed . | . . . Critical Strikes 5 | 2 3 . Burn 5 | 2 3 . Melee Attacks . | . . . Impact . | . . . Slashing . | . . . Piercing . | . . . Sneak Attacks . | . . . Combat Hostiles . | . . . Follow-up Attacks . | . . . Damage Inflicted 909 | 181 689 39 Guns 909 | 181 689 39 Cannons . | . . . Explosions . | . . . Melee . | . . . Ramming . | . . . Kinetic 373 | 94 279 . Thermal 536 | 87 410 39 Explosive . | . . . Electromagnetic . | . . . Impact . | . . . Slashing . | . . . Piercing . | . . . Highest Corruption . | . . . Average Corruption . | . . . Corruption Purged . | . . . Corruption Blocked . | . . . Overload Shots . | . . . Overflow Damage . | . . . Projectiles . | . . . Explosions . | . . . Melee . | . . . Knockbacks . | . . . Impact . | . . . Kinetic . | . . . Secondary . | . . . Self-Inflicted Damage . | . . . Shots . | . . . Rammed . | . . . Targets Rammed . | . . . Kicked . | . . . Crushed . | . . . Highest Temperature 312 | 54 312 63 Average Temperature 86 | 26 100 39 Received Heat Transfer 396 | . 396 . Siege Activations . | . . . Robots Corrupted . | . . . Combat Hostiles . | . . . Parts Fried . | . . . Impact Corruptions . | . . . Robots Melted . | . . . Combat Hostiles . | . . . Parts Melted 4 | 1 3 . Heat Transferred 1961 | 407 1443 111 Parts Sabotaged . | . . . Parts Stolen . | . . . Parts Stripped . | . . . Power Chain Reactions . | . . . Alert | -11 -10 -10 ------- Run | Yrd Mat Min Peak Influence 180 | 20 180 37 Initial 37 | . 13 37 Average 55 | 11 74 35 Maximum Alert Level . | . . . Low Security (%) 100 | 100 100 100 Level 1 . | . . . Level 2 . | . . . Level 3 . | . . . Level 4 . | . . . Level 5 . | . . . High Security . | . . . Max Security . | . . . Squads Dispatched 2 | . 2 . Investigation 1 | . 1 . Extermination . | . . . Reinforcement 1 | . 1 . Assault . | . . . Garrison . | . . . Intercept . | . . . Searches Triggered . | . . . Construction Impeded . | . . . Haulers Reinforced . | . . . Active Scanning Responses . | . . . Cargo Convoy Interrupts . | . . . Stealth | -11 -10 -10 --------- Run | Yrd Mat Min Distress Signals . | . . . Communications Jammed . | . . . Distress Signals . | . . . Times Spotted 17 | . 16 1 Peak Tracking Total 3 | . 3 1 Tactical Retreats . | . . . Traps | -11 -10 -10 ------- Run | Yrd Mat Min Traps Triggered 1 | . 1 . Indirectly . | . . . Trap Hack Attempts . | . . . Triggered . | . . . Disarmed . | . . . Reprogrammed . | . . . Reused . | . . . Traps Extracted . | . . . Installed . | . . . Triggered . | . . . Machines | -11 -10 -10 ---------- Run | Yrd Mat Min Machines Disabled . | . . . Max in Single Turn . | . . . Machines Repaired . | . . . Machines Dismantled . | . . . Machines Sabotaged . | . . . Overloaded Fab Kills . | . . . Hacking | -11 -10 -10 --------- Run | Yrd Mat Min Machines Accessed 2 | . 2 . Terminals 1 | . 1 . Fabricators . | . . . Repair Stations . | . . . Recycling Units 1 | . 1 . Scanalyzers . | . . . Garrison Access . | . . . Total Hacks 3 | . 3 . Successful 2 | . 2 . Failed 1 | . 1 . Catastrophic 1 | . 1 . Database Lockouts . | . . . Manual 1 | . 1 . Terminals 1 | . 1 . Fabricators . | . . . Repair Stations . | . . . Recycling Units 2 | . 2 . Scanalyzers . | . . . Garrison Access . | . . . Terminal Hacks . | . . . Fabricator Hacks . | . . . Repair Station Hacks . | . . . Recycling Unit Hacks 1 | . 1 . Retrieve Components 1 | . 1 . Scanalyzer . | . . . Garrison Access Hacks . | . . . Unauthorized Hacks 1 | . 1 . Terminals . | . . . Fabricators . | . . . Repair Stations . | . . . Recycling Units 1 | . 1 . Tunnel 1 | . 1 . Scanalyzers . | . . . Garrison Access . | . . . Data Cores Recovered . | . . . Used . | . . . Hacking Detections 2 | . 2 . Full Trace Events . | . . . Feedback Events . | . . . Feedback Blocked . | . . . Robot Schematics Acquired . | . . . Robots Built . | . . . Authchips . | . . . Time . | . . . Total Robot Build Rating . | . . . Part Schematics Acquired . | . . . Parts Built . | . . . Authchips . | . . . Time . | . . . Total Part Build Rating . | . . . Parts Repaired . | . . . Time . | . . . Parts Recycled . | . . . Recycled Matter . | . . . Retrieved Matter . | . . . Retrieved Components 10 | . 10 . Parts Scanalyzed . | . . . Part Schematics Acquired . | . . . Parts Damaged . | . . . Bothacking | -11 -10 -10 ------------ Run | Yrd Mat Min Used RIF Installer . | . . . Robots Hacked . | . . . Non-combat . | . . . Combat . | . . . Robot Hacks Applied . | . . . Relay Couplers Released . | . . . Fabnet Peak Effective % . | . . . Robots Rewired . | . . . Allies Hacked . | . . . Hacks Repelled . | . . . Allies | -11 -10 -10 -------- Run | Yrd Mat Min Total Allies . | . . . Largest Group . | . . . Highest-Rated Group . | . . . Highest-Rated Ally . | . . . Total Orders . | . . . Ally Attacks . | . . . Total Damage . | . . . Kills . | . . . Allies Corrupted . | . . . Allies Melted . | . . . Intel | -11 -10 -10 ------- Run | Yrd Mat Min Robot Analysis Total . | . . . Derelict Logs Recovered 1 | . . 1 Drone Launches . | . . . Drone Recoveries . | . . . Exploration | -11 -10 -10 ------------- Run | Yrd Mat Min Turns Passed 941 | 126 564 251 Spaces Moved 449 | 53 249 147 Core . | . . . Treads 448 | 53 249 146 Legs . | . . . Wheels 1 | . . 1 Hover . | . . . Flight . | . . . Fastest Speed 115 | 160 160 115 Average Speed 160 | 160 161 159 Slowest Speed 240 | 160 240 160 Overloaded Moves . | . . . Propulsion Burnouts . | . . . Robots Hopped . | . . . Cave-ins Triggered . | . . . Exploration Rate (%) 32 | 3 43 51 Regions Visited 2 Branch Regions 1 Pre-discovered Areas 1 | . 1 . Known Exits Taken . | . . . Unknown Exits Taken 2 | 1 1 . Scrap Searched 1 | . . 1 Spaces Dug . | . . . Terrain Destroyed . | . . . Melee . | . . . Projectile . | . . . AOE . | . . . Terrain Rammed . | . . . Walls Destroyed . | . . . Machines Disabled . | . . . Actions | -11 -10 -10 --------- Run | Yrd Mat Min Total 546 | 73 317 156 Wait 8 | . 8 . Move 447 | 52 248 147 Hop . | . . . Pick Up 8 | 2 6 . Fast Attach 1 | 1 . . Attach 7 | 2 3 2 Detach . | . . . Swap 4 | 1 2 1 Drop 6 | 4 2 . Fire 65 | 11 48 6 Melee . | . . . Ram . | . . . Kick . | . . . Crush . | . . . Escape Stasis . | . . . Rewire . | . . . Trap . | . . . Miscellaneous . | . . . Route ------- -11/Scrapyard -10/Materials (discovered 2 exits: [*Mat] / [*Min]) -10/Mines (discovered 1 exit: [*Mat]) History --------- Turn | Location | Event 7 | -11/Scrapyard | Discovered new exit (range 1) 127 | -11/Scrapyard | Entered Materials 301 | -10/Materials | Build established: Mutant 318 | -10/Materials | Discovered new exit (range 16) 619 | -10/Materials | Discovered new exit (range 11) 661 | -10/Materials | Core integrity fell below 50% 691 | -10/Materials | Entered Mines 722 | -10/Mines | Discovered new exit (range 10) 824 | -10/Mines | Learned Materials interactive machine intel 939 | -10/Mines | Core integrity fell below 20% 942 | -10/Mines | Destroyed by YI-UF0 with YI-UF0's Doublenader Last Messages --------------- 00914_ U-05 Engineer builds a Wall. 00919_ U-05 Engineer lays Concrete. 00923_ The unstable cave ceiling collapses. 00924_ Med. Laser destroyed. 00924_ YI-UF0: "BAROOM!" 00924_ R-06 Scavenger destroyed. 00927_ U-05 Engineer builds a Wall. 00928_ U-05 Engineer destroyed. 00928_ YI-UF0: "KAPOW!" 00928_ U-05 Engineer destroyed. 00930_ The unstable cave ceiling collapses. 00930_ Seismic Detector destroyed. 00934_ Lgt. Nuclear Core destroyed. 00936_ Med. Laser destroyed. 00937_ The unstable cave ceiling collapses. 00938_ YI-UF0 mumbles something. 00939_ The unstable cave ceiling collapses. 00940_ Lgt. Treads destroyed. 00941_ YI-UF0 mumbles something. 00941_ The unstable cave ceiling collapses. Map ----- +----------------------------------------------------+ | ??????# ### """ ###? | | ??????## #?# """ ##??? | | ??????## #?## ##??? | | ?????## ##?## #??? | | ?????# ### #?## #### | | ?????# ##?# ### < | | ?????## ##??# | | ??????#####???# #### ### #### | | ??????????????# #??###?## ###??# | | ??????????????# #???????####???## | | ??????????????# #?????????????## | | ????????####### #????????????## | | ???????## # # #??####?????## | | ???????# ## #### ####### "" | | ???????# ## "" | | ???????# % "" | | ???????# ###### | | ???????# ## t### ##### | | ???????# ## ## ##???## | | ?????### %# #?## ##?????## | | ??#### # % ##?## #???????### | | ?## # #??# ########## | | ?# #???# | | ?# == #???# | | ?# # *% ##??## ######### | | ?# @ #???####???????# | | ?# ##??????????????## | | ?# # #????????????????# | | ???# ###????????????????? | | ???## % #??????????????????? | | ????## !# ##?????????????????? | | ?????# #?????????????????? | | ?????# #?????????????????? | | ????? ## ##?????????????????? | | ????? #??????????????????? | | ????## # ??????????????????? | | ?????# ###?????????????????? | | ?????# g ! ???????????????????? | | ????? ???????????????????? | | ????? ??????????????????? | | ????? ? # # ????????????????????? | | ????????? ??????????????????????? | | ?????????????????????????????????? | | ?????????????????????????????????? | | ?????????????????????????????????? | | ?????????????????????????????????? | | ?????????????????????????????????? | | ?????????????????????????????????? | | ?????????????????????????????????? | | ?????????????????????????????????? | +----------------------------------------------------+ Best States ------------- Heat Dissipation 25 Energy Generation 14 Energy Capacity 250 Matter Stores 300 Matter Capacity 300 Sight Range 16 Terrain Scan Density 10 Evasion (%) 40 Recoil Reduction 2 Item Schematics ----------------- None Robot Schematics ------------------ None Fabricated ------------ Nothing Alien Tech Used ----------------- None Achievements -------------- None Challenges ------------ None Game ------ Seed ImprovedLaserTorch Manual? 0 Play Time 00:05:48 Cumulative 155.3 hours Start 2024.12.11 @ 17:41:10 End 2024.12.11 @ 17:45:56 Sessions 1 Manual Loads 0 Difficulty Rogue Special Mode None Game No. 293 Rogue 293 Adventurer 0 Explorer 0 Win Type - Total 0 Types 0/0/0/0/0/0/0/0/0 Lore% 46 Gallery% 42 Achievement% 36 Wizard Run 0 Options --------- Layout 0 ASCII 0 Keyboard 0 Movement Mouse Keybinds 0 Fullscreen 1 Font 24/Smallcaps Map View 183x50 Zoom Use 78% Tactical HUD 1 Map Filters NONE Filters NONE Steam 1 RUN: f7371734-77ec-40d9-8bb0-352e6b2ecbb0